bitfinex/quotes_BTCUSD_20240623
["timestamp","ask_amount","ask_price","bid_price","bid_amount"]
[1719137698527,0.21223168,64428.0,64427.0,1.96930474]
[1719137700771,0.06234487,64428.0,64427.0,1.96930474]
[1719137700975,0.21064415,64428.0,64427.0,1.96930474]
[1719137701457,0.06234487,64428.0,64427.0,1.96930474]
[1719137701601,0.21062336,64428.0,64427.0,1.96930474]
[1719137702990,0.21051879,64428.0,64427.0,1.96930474]
[1719137703199,0.21051879,64428.0,64427.0,1.65887674]
[1719137703607,0.06234487,64428.0,64427.0,1.65887674]
[1719137703838,0.21100226,64428.0,64427.0,1.65887674]
[1719137705853,0.35600226,64428.0,64427.0,1.65887674]
[1719137706662,0.35529867,64428.0,64427.0,1.65887674]
[1719137707616,0.35529867,64428.0,64427.0,1.65981174]
[1719137708300,0.03427558,64428.0,64427.0,1.65981174]
[1719137709117,0.1187,64430.0,64429.0,0.155209]
[1719137709320,0.167426,64430.0,64429.0,0.30777012]
[1719137709485,0.167426,64430.0,64429.0,0.31969886]
[1719137710503,0.167426,64430.0,64429.0,0.3198536]
[1719137710887,0.167426,64430.0,64429.0,0.3338536]
[1719137711289,0.314326,64430.0,64429.0,0.3338536]
[1719137711745,0.314326,64430.0,64429.0,0.33385364]
[1719137711947,0.314326,64430.0,64429.0,0.34785364]
[1719137712944,0.314326,64430.0,64429.0,1.34785364]
[1719137718238,0.41795234,64430.0,64429.0,1.34785364]
[1719137718647,0.33793262,64430.0,64429.0,1.34785364]
[1719137718848,0.41795155,64430.0,64429.0,1.34785364]
[1719137719342,0.41798181,64430.0,64429.0,1.34785364]
[1719137720478,0.10618935,64430.0,64429.0,1.34785364]
[1719137721677,0.00249191,64430.0,64429.0,1.34785364]
[1719137722315,0.10669966,64430.0,64429.0,1.34785364]
[1719137723447,0.12610753,64430.0,64429.0,1.34785364]
[1719137724064,0.12610753,64430.0,64429.0,1.34785363]
[1719137727498,0.12361562,64430.0,64429.0,1.34785363]
[1719137727707,0.1498,64432.0,64430.0,0.155205]
[1719137727950,0.20311877,64431.0,64430.0,0.155205]
[1719137728107,0.2267998,64431.0,64430.0,0.155205]
[1719137728312,0.22669344,64431.0,64430.0,0.155205]
[1719137728937,0.22669344,64431.0,64430.0,0.15535977]
[1719137729168,0.22669344,64431.0,64430.0,0.16935977]
[1719137729337,0.22669344,64431.0,64430.0,0.15535977]
[1719137729689,0.22695959,64431.0,64430.0,1.18335977]
[1719137730785,0.22701091,64431.0,64430.0,1.18335977]
[1719137731012,0.22701091,64431.0,64430.0,1.16935977]
[1719137731395,0.22701091,64431.0,64430.0,1.18335977]
[1719137733781,0.22763512,64431.0,64430.0,1.18335977]
[1719137735653,0.16826202,64431.0,64430.0,1.02815477]
[1719137735860,0.16826202,64431.0,64430.0,1.18336177]
[1719137736673,0.04366819,64431.0,64430.0,1.18336177]
[1719137736876,0.16763175,64431.0,64430.0,1.18336177]
[1719137737392,0.16763092,64431.0,64430.0,1.18336177]
[1719137737956,0.22645896,64431.0,64430.0,1.18336177]
[1719137738544,0.22756092,64431.0,64430.0,1.18336177]
[1719137738936,0.22686403,64431.0,64430.0,1.18336177]
[1719137739970,0.0682285,64431.0,64430.0,1.18336177]
[1719137740136,0.22808141,64431.0,64430.0,1.18336177]
[1719137740348,0.49068141,64431.0,64430.0,1.02815477]
[1719137741274,0.64588541,64431.0,64430.0,1.02815477]
[1719137741492,0.49068141,64431.0,64430.0,1.04008329]
[1719137742954,0.40234709,64431.0,64430.0,1.04008329]
[1719137743157,0.48557046,64431.0,64430.0,1.04008329]
[1719137744301,0.64258199,64431.0,64430.0,1.04008329]
[1719137745919,0.30711819,64431.0,64430.0,1.04008329]
[1719137746123,0.5604935,64431.0,64430.0,1.04008329]
[1719137746337,0.64397763,64431.0,64430.0,1.04008329]
[1719137746540,0.30711819,64431.0,64430.0,1.04008329]
[1719137746818,0.64408331,64431.0,64430.0,1.04008329]
[1719137749151,0.56061705,64431.0,64430.0,1.04008329]
[1719137749380,0.64425695,64431.0,64430.0,1.04008329]
[1719137749538,0.52755695,64431.0,64430.0,1.04008329]
[1719137752114,0.28623892,64431.0,64430.0,1.04008329]
[1719137752325,0.52688393,64431.0,64430.0,1.04008329]
[1719137754003,0.64258393,64431.0,64430.0,1.04008329]
[1719137754846,1.11309693,64431.0,64430.0,1.04008329]
[1719137755089,0.38047776,64431.0,64430.0,1.04008329]
[1719137755265,0.22351346,64431.0,64430.0,1.04008329]
[1719137755884,0.22803201,64431.0,64430.0,1.04008329]
[1719137757249,0.22784497,64431.0,64430.0,1.04008329]
[1719137758121,0.22784926,64431.0,64430.0,1.04008329]
[1719137760925,0.14617043,64431.0,64430.0,1.04008329]
[1719137761118,0.22915811,64431.0,64430.0,1.04008329]
[1719137763328,0.10380486,64431.0,64430.0,1.04008329]
[1719137763537,0.3359066,64431.0,64430.0,1.04008329]
[1719137763907,0.33590915,64431.0,64430.0,1.04008329]
[1719137766327,0.31274234,64431.0,64430.0,1.04008329]
[1719137766678,0.33614873,64431.0,64430.0,1.04008329]
[1719137769232,0.2531716,64431.0,64430.0,1.04008329]
[1719137769456,0.33473983,64431.0,64430.0,1.04008329]
[1719137771510,0.27611967,64431.0,64430.0,1.04008329]
[1719137772198,0.17403618,64431.0,64430.0,1.04008329]
[1719137772365,0.27505345,64431.0,64430.0,1.04008329]
[1719137772568,0.29803022,64431.0,64430.0,1.04008329]
[1719137772884,0.27558128,64431.0,64430.0,1.04008329]
[1719137773155,0.37716504,64431.0,64430.0,1.04008329]
[1719137773612,0.37716504,64431.0,64430.0,1.04101829]
[1719137774318,0.37908988,64431.0,64430.0,1.04101829]
[1719137775370,0.37914706,64431.0,64430.0,1.04101829]
[1719137776213,0.24960037,64431.0,64430.0,1.04101829]
[1719137776769,0.2284954,64431.0,64430.0,1.04101829]
[1719137778441,0.22899381,64431.0,64430.0,1.04101829]
[1719137778822,0.22899381,64431.0,64430.0,1.19622529]
[1719137781385,0.14790153,64431.0,64430.0,1.19622529]
[1719137781590,0.23027594,64431.0,64430.0,1.19622529]
[1719137782008,0.23037064,64431.0,64430.0,1.19622529]
[1719137783484,0.23117155,64431.0,64430.0,1.19622529]
[1719137784246,0.04451819,64431.0,64430.0,1.19622529]
[1719137784631,0.21077634,64431.0,64430.0,1.81705329]
[1719137784831,0.17442684,64431.0,64430.0,1.78123929]
[1719137786578,0.17442684,64431.0,64430.0,2.44421441]
[1719137787363,0.23426426,64431.0,64430.0,2.75462841]
[1719137787798,0.23426426,64431.0,64430.0,2.74062841]
[1719137788314,0.09468434,64431.0,64430.0,2.72662841]
[1719137788512,0.08915041,64431.0,64430.0,2.74062841]
[1719137788784,0.08915041,64431.0,64430.0,2.72662841]
[1719137789112,0.08915041,64431.0,64430.0,2.74062841]
[1719137789384,0.08915041,64431.0,64430.0,2.75462841]
[1719137789997,0.08915041,64431.0,64430.0,2.74062841]
[1719137790130,0.08915041,64431.0,64430.0,2.75462841]
[1719137790131,0.06442395,64431.0,64430.0,2.75462841]
[1719137790333,0.11419285,64431.0,64430.0,2.75462841]
[1719137790739,0.06940263,64431.0,64430.0,2.75462841]
[1719137790981,0.11554743,64431.0,64430.0,2.75462841]
[1719137792154,0.08981342,64431.0,64430.0,2.75462841]
[1719137792345,0.11554416,64431.0,64430.0,2.75462841]
[1719137793256,0.11785583,64431.0,64430.0,2.75462841]
[1719137794441,0.07418764,64431.0,64430.0,2.75462841]
[1719137794674,0.11786628,64431.0,64430.0,2.75462841]
[1719137795363,0.07418764,64431.0,64430.0,2.75462841]
[1719137796339,0.07519646,64431.0,64430.0,2.75462841]
[1719137797005,0.05031202,64431.0,64430.0,2.75462841]
[1719137797454,0.05031202,64431.0,64430.0,2.85462841]
[1719137797663,0.0273424,64431.0,64430.0,3.26804241]
[1719137797881,0.09710651,64431.0,64430.0,3.26804241]
[1719137798043,0.00085,64431.0,64430.0,3.26804241]
[1719137798440,0.00085,64431.0,64430.0,3.25404241]
[1719137799024,0.00085,64431.0,64430.0,3.24004241]
[1719137799231,0.04734761,64431.0,64430.0,3.24004241]
[1719137799479,0.00085,64431.0,64430.0,3.26804241]
[1719137800527,0.00085,64431.0,64430.0,3.25404241]
[1719137801646,0.00085,64431.0,64430.0,3.24004241]
[1719137802071,0.00085,64431.0,64430.0,3.26804241]
[1719137802200,0.00085,64431.0,64430.0,3.25404241]
[1719137802398,0.00085,64431.0,64430.0,3.24004241]
[1719137802604,0.00085,64431.0,64430.0,3.25404241]
[1719137803606,0.00085,64431.0,64430.0,3.26804241]
[1719137804611,0.00085,64431.0,64430.0,3.25404241]
[1719137804880,0.00085,64431.0,64430.0,3.26804241]
[1719137805080,0.00085,64431.0,64430.0,3.25404241]
[1719137805237,0.00085,64431.0,64430.0,3.24004241]
[1719137805586,0.00085,64431.0,64430.0,3.26804241]
[1719137805700,0.00085,64431.0,64430.0,3.25404241]
[1719137807467,0.00085,64431.0,64430.0,3.25404241]
[1719137807869,0.00085,64431.0,64430.0,3.26804241]
[1719137814634,0.00085,64431.0,64430.0,3.25404241]
[1719137814834,0.00085,64431.0,64430.0,3.26804241]
[1719137815069,0.00085,64431.0,64430.0,3.25404241]
[1719137815635,0.00085,64431.0,64430.0,3.26804241]
[1719137815961,0.00085,64431.0,64430.0,3.25404241]
[1719137816791,0.00085,64431.0,64430.0,3.26804241]
[1719137820166,0.00085,64431.0,64430.0,3.36804241]
[1719137835837,0.17003256,64440.0,64439.0,1.286298]
[1719137836006,0.17003256,64440.0,64439.0,1.23885912]
[1719137836007,0.26757287,64440.0,64439.0,1.23885912]
[1719137836208,0.3874632,64440.0,64439.0,1.45078573]
[1719137836609,0.27123969,64440.0,64439.0,1.45078573]
[1719137837034,0.27123969,64440.0,64439.0,1.26478573]
[1719137837281,0.27123969,64440.0,64439.0,1.2789405]
[1719137837493,0.37458833,64440.0,64439.0,1.2789405]
[1719137837865,0.37458833,64440.0,64439.0,1.4789405]
[1719137838211,0.37458833,64440.0,64439.0,2.4789405]
[1719137839300,0.37458833,64440.0,64439.0,2.47894048]
[1719137839443,0.25833535,64440.0,64439.0,2.47894048]
[1719137840231,0.24153133,64440.0,64439.0,2.47894048]
[1719137840433,0.2587046,64440.0,64439.0,2.47894048]
[1719137843395,0.25886077,64440.0,64439.0,2.47894048]
[1719137844083,0.1389927,64440.0,64439.0,2.47894048]
[1719137844302,0.08516913,64440.0,64439.0,2.47894048]
[1719137845311,0.08515839,64440.0,64439.0,2.47894048]
[1719137846496,0.08515871,64440.0,64439.0,2.47894048]
[1719137849311,0.0608761,64440.0,64439.0,2.47894048]
[1719137849511,0.08518234,64440.0,64439.0,2.47894048]
[1719137850522,0.08518234,64440.0,64439.0,2.27894048]
[1719137850718,0.08518234,64440.0,64439.0,2.47894048]
[1719137851220,0.08518234,64440.0,64439.0,2.27894048]
[1719137851737,0.08518234,64440.0,64439.0,2.29774175]
[1719137852151,0.04369308,64440.0,64439.0,2.29774175]
[1719137852351,0.08478161,64440.0,64439.0,2.29774175]
[1719137852751,0.08478171,64440.0,64439.0,2.29774175]
[1719137853599,0.08478171,64440.0,64439.0,2.49774175]
[1719137854000,0.08482752,64440.0,64439.0,2.49774175]
[1719137855270,0.08477835,64440.0,64439.0,2.49774175]
[1719137858177,0.08516037,64440.0,64439.0,2.49774175]
[1719137858423,0.08516037,64440.0,64439.0,2.64784175]
[1719137859200,0.06087828,64440.0,64439.0,2.64784175]
[1719137859427,0.08517838,64440.0,64439.0,2.64784175]
[1719137861107,0.06087853,64440.0,64439.0,2.64784175]
[1719137861307,0.10941413,64440.0,64439.0,2.64784175]
[1719137861588,0.10941412,64440.0,64439.0,2.64784175]
[1719137861768,0.10941417,64440.0,64439.0,2.64784175]
[1719137862681,0.10941417,64440.0,64439.0,2.63384175]
[1719137862884,0.10941417,64440.0,64439.0,2.64784175]
[1719137863113,0.10941417,64440.0,64439.0,2.63384175]
[1719137863628,0.10941417,64440.0,64439.0,2.61984175]
[1719137863832,0.10941417,64440.0,64439.0,2.63384175]
[1719137864038,0.10941417,64440.0,64439.0,2.64784175]
[1719137864267,0.06796088,64440.0,64439.0,2.64784175]
[1719137864490,0.10936246,64440.0,64439.0,2.64784175]
[1719137867317,0.06796088,64440.0,64439.0,2.64784175]
[1719137867489,0.10934234,64440.0,64439.0,2.64784175]
[1719137869959,0.10080594,64440.0,64439.0,2.64784175]
[1719137870368,0.08357922,64440.0,64439.0,2.64784175]
[1719137870598,0.10076561,64440.0,64439.0,2.64784175]
[1719137870960,0.10076559,64440.0,64439.0,2.64784175]
[1719137871385,0.10076559,64440.0,64439.0,2.63384175]
[1719137871800,0.10076559,64440.0,64439.0,2.64784175]
[1719137872212,0.10076607,64440.0,64439.0,2.64784175]
[1719137872553,0.10076607,64440.0,64439.0,2.63384175]
[1719137872758,0.10076607,64440.0,64439.0,2.75684175]
[1719137873042,0.10076607,64440.0,64439.0,2.77084175]
[1719137873244,0.10076607,64440.0,64439.0,2.75684175]
[1719137873446,0.05942448,64440.0,64439.0,2.75684175]
[1719137873647,0.10076643,64440.0,64439.0,2.77084175]
[1719137873805,0.10076643,64440.0,64439.0,2.75684175]
[1719137874006,0.10076643,64440.0,64439.0,2.77084175]
[1719137874426,0.10076643,64440.0,64439.0,2.74284175]
[1719137874651,0.06560975,64440.0,64439.0,2.75684175]
[1719137874887,0.06560975,64440.0,64439.0,2.74284175]
[1719137875177,0.06560975,64440.0,64439.0,2.54284175]
[1719137875378,0.06560975,64440.0,64439.0,2.74284175]
[1719137876365,0.06560975,64440.0,64439.0,2.77084175]
[1719137876543,0.06553703,64440.0,64439.0,2.77084175]
[1719137876743,0.06553703,64440.0,64439.0,2.75684175]
[1719137876948,0.06553703,64440.0,64439.0,2.77084175]
[1719137877552,0.10834337,64440.0,64439.0,2.77084175]
[1719137879559,0.10833331,64440.0,64439.0,2.77084175]
[1719137880083,0.25056586,64445.0,64439.0,2.77084175]
[1719137880084,0.10455634,64445.0,64442.0,0.2]
[1719137880238,0.26140716,64445.0,64444.0,0.775865]
[1719137880443,0.32828731,64445.0,64444.0,0.92842612]
[1719137880662,0.32828731,64445.0,64444.0,1.25069766]
[1719137881090,0.00630836,64445.0,64444.0,1.25069766]
[1719137881296,0.00630836,64445.0,64444.0,1.25085241]
[1719137881499,0.1107,64446.0,64445.0,0.775855]
[1719137881705,0.21552299,64446.0,64445.0,0.92841612]
[1719137881929,0.19510188,64446.0,64445.0,0.94034145]
[1719137882381,0.19510188,64446.0,64445.0,0.9404962]
[1719137883393,0.19510188,64446.0,64445.0,0.9544962]
[1719137883593,0.19510188,64446.0,64445.0,0.95449621]
[1719137884431,0.19510188,64446.0,64445.0,0.96849621]
[1719137884976,0.19526815,64446.0,64445.0,1.96849621]
[1719137885462,0.20386815,64446.0,64445.0,1.96849621]
[1719137885826,0.20386815,64446.0,64445.0,1.95449621]
[1719137886262,0.20386815,64446.0,64445.0,1.96849621]
[1719137886868,0.20386815,64446.0,64445.0,1.98249621]
[1719137887093,0.34353567,64446.0,64445.0,1.98249621]
[1719137887387,0.20386815,64446.0,64445.0,1.98249621]
[1719137887730,0.20386815,64446.0,64445.0,1.96849621]
[1719137887937,0.15765457,64446.0,64445.0,1.96849621]
[1719137888138,0.13877705,64452.0,64451.0,0.155156]
[1719137888343,0.27661806,64452.0,64451.0,0.16708005]
[1719137889482,0.27661806,64452.0,64451.0,0.16723481]
[1719137889856,0.27661806,64452.0,64451.0,0.18123481]
[1719137890072,0.27661806,64452.0,64451.0,1.18123481]
[1719137890960,0.03390189,64452.0,64451.0,1.18123481]
[1719137891163,0.07960071,64452.0,64451.0,1.18123481]
[1719137891372,0.17969826,64452.0,64451.0,1.18123481]
[1719137891719,0.17969826,64452.0,64451.0,1.18123477]
[1719137892086,0.17969826,64452.0,64451.0,1.19523477]
[1719137893372,0.2985247,64452.0,64451.0,1.19523477]
[1719137893535,0.33682036,64452.0,64451.0,1.19523477]
[1719137893917,0.06180189,64452.0,64451.0,1.19523477]
[1719137894120,0.2978171,64452.0,64451.0,1.19523477]
[1719137894500,0.33648847,64452.0,64451.0,1.19523477]
[1719137897042,0.3373391,64452.0,64451.0,1.19523477]
[1719137897692,0.41477548,64452.0,64451.0,1.19523477]
[1719137897894,0.49446126,64452.0,64451.0,1.19523477]
[1719137898695,0.49446126,64452.0,64451.0,1.50554777]
[1719137898896,0.21892327,64452.0,64451.0,1.50554777]
[1719137899098,0.49445366,64452.0,64451.0,1.50554777]
[1719137900096,0.25764661,64452.0,64451.0,1.50554777]
[1719137900291,0.49444499,64452.0,64451.0,1.50554777]
[1719137901370,0.33732361,64452.0,64451.0,1.50554777]
[1719137901719,0.33817361,64452.0,64451.0,1.50554777]
[1719137903200,0.3381738,64452.0,64451.0,1.50554777]
[1719137906155,0.06265189,64452.0,64451.0,1.50554777]
[1719137906357,0.29944793,64452.0,64451.0,1.50554777]
[1719137906565,0.28048158,64452.0,64451.0,1.50554777]
[1719137906736,0.25851717,64452.0,64451.0,1.50554777]
[1719137906937,0.31622313,64452.0,64451.0,1.50554777]
[1719137907173,0.33818807,64452.0,64451.0,1.50554777]
[1719137907980,0.33819617,64452.0,64451.0,1.19523477]
[1719137909157,0.06265189,64452.0,64451.0,1.19523477]
[1719137909365,0.29920763,64452.0,64451.0,1.19523477]
[1719137909520,0.33798623,64452.0,64451.0,1.19523477]
[1719137909906,0.31008623,64452.0,64451.0,1.19523477]
[1719137912184,0.31088231,64452.0,64451.0,1.19523477]
[1719137915232,0.11446254,64452.0,64451.0,1.50554777]
[1719137915415,0.27159621,64452.0,64451.0,1.50554777]
[1719137915545,0.31105043,64452.0,64451.0,1.50554777]
[1719137915748,0.31117052,64452.0,64451.0,1.50554777]
[1719137918211,0.31112855,64452.0,64451.0,1.50554777]
[1719137919408,0.23136523,64452.0,64451.0,1.50554777]
[1719137919631,0.31113599,64452.0,64451.0,1.50554777]
[1719137921572,0.31109098,64452.0,64451.0,1.50554777]
[1719137924303,0.11434303,64452.0,64451.0,1.50554777]
[1719137924458,0.27149678,64452.0,64451.0,1.50554777]
[1719137924659,0.31121442,64452.0,64451.0,1.50554777]
[1719137924887,0.03475189,64452.0,64451.0,1.50554777]
[1719137925088,0.27150527,64452.0,64451.0,1.50554777]
[1719137925291,0.31119846,64452.0,64451.0,1.50554777]
[1719137925467,0.31119846,64452.0,64451.0,0.16711659]
[1719137927427,0.11434995,64452.0,64451.0,0.16711659]
[1719137927727,0.27150682,64452.0,64451.0,0.16711659]
[1719137927903,0.31115787,64452.0,64451.0,0.16711659]
[1719137928725,0.31131303,64452.0,64451.0,0.01196059]
[1719137928902,0.15415616,64452.0,64450.0,0.155158]
[1719137929111,0.153151,64451.0,64450.0,0.155158]
[1719137929302,0.15330616,64451.0,64450.0,0.155158]
[1719137930140,0.15330616,64451.0,64450.0,0.157158]
[1719137930345,0.13771821,64451.0,64450.0,0.155158]
[1719137930719,0.13871821,64451.0,64450.0,0.157158]
[1719137931333,0.13871821,64451.0,64450.0,0.171158]
[1719137931731,0.13871821,64451.0,64450.0,0.157158]
[1719137932136,0.13971821,64451.0,64450.0,0.171158]
[1719137932946,0.13971821,64451.0,64450.0,0.18312098]
[1719137933320,0.03605705,64451.0,64450.0,0.18312098]
[1719137933477,0.08192203,64451.0,64450.0,0.18312098]
[1719137933686,0.13947228,64451.0,64450.0,0.18312098]
[1719137933903,0.1154216,64451.0,64450.0,0.18312098]
[1719137934108,0.13948558,64451.0,64450.0,0.18312098]
[1719137935182,0.13948558,64451.0,64450.0,0.18405598]
[1719137935361,0.1394861,64451.0,64450.0,0.02889798]
[1719137936342,0.06012074,64451.0,64450.0,0.02889798]
[1719137936543,0.13950784,64451.0,64450.0,0.02889798]
[1719137939280,0.03605705,64451.0,64450.0,0.02889798]
[1719137939478,0.08194764,64451.0,64450.0,0.02889798]
[1719137939679,0.13952275,64451.0,64450.0,0.02889798]
[1719137941569,0.11545935,64451.0,64450.0,0.02889798]
[1719137941679,0.05791071,64451.0,64450.0,0.02889798]
[1719137941879,0.08197389,64451.0,64450.0,0.02889798]
[1719137942140,0.05791071,64451.0,64450.0,0.02889798]
[1719137942378,0.13957365,64451.0,64450.0,0.02889798]
[1719137943754,0.13932918,64451.0,64450.0,0.02889798]
[1719137944803,0.13932911,64451.0,64450.0,0.02889798]
[1719137947513,0.03605705,64451.0,64450.0,0.02889798]
[1719137947719,0.08193523,64451.0,64450.0,0.02889798]
[1719137947921,0.13949847,64451.0,64450.0,0.02889798]
[1719137950561,0.06011896,64451.0,64450.0,0.02889798]
[1719137950767,0.08197616,64451.0,64450.0,0.02889798]
[1719137950944,0.13957776,64451.0,64450.0,0.02889798]
[1719137951145,0.13963332,64451.0,64450.0,0.02889798]
[1719137951554,0.01143696,64453.0,64450.0,0.02889798]
[1719137951751,0.02991181,64452.0,64450.0,0.02889798]
[1719137952157,0.02991181,64451.0,64450.0,0.02889798]
[1719137952570,0.02991181,64451.0,64450.0,1.2515721]
[1719137952728,0.14632272,64451.0,64450.0,2.0450721]
[1719137952947,0.001,64453.0,64451.0,1.354282]
[1719137952948,0.11741091,64452.0,64451.0,1.354282]
[1719137953162,0.001,64452.0,64451.0,1.787595]
[1719137953359,0.001,64452.0,64451.0,1.79955777]
[1719137954344,0.04652759,64454.0,64453.0,1.38606]
[1719137954540,0.04652759,64454.0,64453.0,1.82652112]
[1719137954837,0.04652759,64454.0,64453.0,1.8386381]
[1719137955277,0.04652759,64455.0,64454.0,1.075745]
[1719137955479,0.04652759,64455.0,64454.0,1.51620612]
[1719137955797,0.04652759,64455.0,64454.0,1.32816825]
[1719137955997,0.04652759,64455.0,64454.0,1.32832289]
[1719137956195,0.04652759,64456.0,64455.0,0.765441]
[1719137956395,0.04652759,64456.0,64455.0,1.00590212]
[1719137956600,0.11621254,64461.0,64460.0,0.2649]
[1719137956860,0.11621254,64461.0,64460.0,0.41746112]
[1719137957011,0.11621254,64461.0,64460.0,0.42942197]
[1719137957203,0.11621254,64462.0,64460.0,0.42942197]
[1719137957400,0.11621254,64462.0,64461.0,0.15256112]
[1719137957813,0.11621254,64462.0,64461.0,0.16452176]
[1719137958011,0.11621254,64462.0,64461.0,0.1646764]
[1719137958253,0.11621254,64463.0,64461.0,0.1646764]
[1719137959003,0.11621254,64463.0,64462.0,0.00015464]
[1719137959198,0.11621254,64463.0,64462.0,0.15271576]
[1719137959416,0.11621254,64463.0,64462.0,0.16467619]
[1719137959617,0.155115,64468.0,64462.0,0.16467619]
[1719137959843,0.11614972,64463.0,64462.0,0.01211507]
[1719137960257,0.11614878,64464.0,64462.0,0.01211507]
[1719137960442,0.11614878,64464.0,64462.0,0.02611507]
[1719137960777,0.11614878,64464.0,64463.0,0.2649]
[1719137960973,0.11614878,64464.0,64463.0,0.27686021]
[1719137961179,0.11614878,64465.0,64463.0,0.27701485]
[1719137961618,0.00965721,64464.0,64463.0,0.27701485]
[1719137962677,0.0096572,64464.0,64463.0,0.27701485]
[1719137963382,0.10253052,64464.0,64463.0,0.27701485]
[1719137963729,0.10253052,64464.0,64463.0,0.29101485]
[1719137964546,0.10253052,64464.0,64463.0,0.27701485]
[1719137964945,0.10253052,64464.0,64463.0,0.29101485]
[1719137965591,0.10251587,64464.0,64463.0,0.27701485]
[1719137965745,0.12573054,64464.0,64463.0,0.27701485]
[1719137965952,0.00965718,64464.0,64463.0,0.30501485]
[1719137966166,0.00965718,64464.0,64463.0,0.29101485]
[1719137966397,0.03603306,64466.0,64463.0,0.29101485]
[1719137966598,0.03603306,64465.0,64463.0,0.30501485]
[1719137966961,0.03603306,64464.0,64463.0,0.30501485]
[1719137967337,0.03603306,64464.0,64463.0,0.29101485]
[1719137967649,0.03603306,64464.0,64463.0,0.30501485]
[1719137968208,0.03603274,64464.0,64463.0,0.30501485]
[1719137968633,0.03603276,64464.0,64463.0,0.34197597]
[1719137968832,0.03603276,64464.0,64463.0,0.32797597]
[1719137969063,0.03603276,64464.0,64463.0,0.31397597]
[1719137969256,0.02637588,64464.0,64463.0,0.32797597]
[1719137969454,0.00965688,64464.0,64463.0,0.34197597]
[1719137969668,0.02637588,64464.0,64463.0,0.32797597]
[1719137969862,0.03603276,64464.0,64463.0,0.32797597]
[1719137970175,0.03603276,64464.0,64463.0,0.34197597]
[1719137971133,0.12571534,64464.0,64463.0,0.34197597]
[1719137971703,0.155113,64469.0,64463.0,0.34197597]
[1719137971819,0.11605768,64464.0,64463.0,0.18941485]
[1719137972182,0.12571461,64464.0,64463.0,0.18941485]
[1719137972400,0.15208937,64464.0,64463.0,0.18941485]
[1719137974211,0.15208937,64464.0,64463.0,0.04011485]
[1719137974620,0.15208937,64464.0,64463.0,0.02815464]
[1719137974827,0.15208931,64464.0,64463.0,0.04011485]
[1719137975030,0.15208931,64464.0,64463.0,0.19267597]
[1719137977881,0.15209458,64464.0,64463.0,0.19267597]
[1719137978251,0.02637476,64464.0,64463.0,0.19267597]
[1719137978452,0.00965696,64464.0,64463.0,0.19267597]
[1719137978653,0.02637476,64464.0,64463.0,0.19267597]
[1719137978852,0.03603172,64464.0,64463.0,0.19267597]
[1719137979552,0.02637476,64464.0,64463.0,0.19267597]
[1719137979760,0.00965697,64464.0,64463.0,0.19267597]
[1719137979977,0.03603173,64465.0,64463.0,0.19267597]
[1719137980177,0.03603173,64464.0,64463.0,0.04011485]
[1719137980948,0.02637476,64464.0,64463.0,0.04011485]
[1719137981147,0.03603175,64464.0,64463.0,0.04011485]
[1719137982028,0.03603175,64464.0,64463.0,0.02611485]
[1719137982403,0.03603175,64464.0,64463.0,0.04011485]
[1719137982922,0.03603175,64464.0,64463.0,0.02611485]
[1719137983337,0.03603175,64464.0,64463.0,0.04011485]
[1719137983537,0.03603175,64464.0,64463.0,0.19267597]
[1719137983940,0.03603167,64464.0,64463.0,0.19267597]
[1719137988913,0.03603166,64464.0,64463.0,0.19267597]
[1719137991231,0.02637476,64464.0,64463.0,0.19267597]
[1719137991428,0.07794183,64464.0,64463.0,0.19267597]
[1719137993989,0.07794183,64464.0,64463.0,0.17867597]
[1719137994504,0.07794183,64464.0,64463.0,0.19267597]
[1719137996049,0.08760951,64464.0,64463.0,0.17867597]
[1719137996248,0.2271013,64464.0,64463.0,0.19267597]
[1719137996450,0.08760951,64464.0,64463.0,0.19267597]
[1719137996665,0.21748115,64464.0,64463.0,0.19267597]
[1719137996895,0.227138,64464.0,64463.0,0.19267597]
[1719137997224,0.08761164,64464.0,64463.0,0.19267597]
[1719137997835,0.08760592,64464.0,64463.0,0.19267597]
[1719137999554,0.08760592,64464.0,64463.0,1.19267597]
[1719138001380,0.07795658,64464.0,64463.0,1.19267597]
[1719138001584,0.08846341,64464.0,64463.0,1.19267597]
[1719138004430,0.0884536,64464.0,64463.0,1.19267597]
[1719138004589,0.07879675,64464.0,64463.0,1.19267597]
[1719138004828,0.07879675,64464.0,64463.0,1.04011485]
[1719138004829,0.83767175,64464.0,64463.0,1.04011485]
[1719138005044,1.30502764,64464.0,64463.0,1.04011485]
[1719138005254,1.14792175,64464.0,64463.0,1.04011485]
[1719138005437,1.14792175,64464.0,64463.0,1.02815464]
[1719138005857,1.14792175,64464.0,64463.0,1.04011485]
[1719138007087,1.09634976,64464.0,64463.0,1.04011485]
[1719138007286,1.14837642,64464.0,64463.0,1.04011485]
[1719138010493,1.30540414,64464.0,64463.0,1.04011485]
[1719138010670,1.17830414,64464.0,64463.0,1.04011485]
[1719138011040,1.02127642,64464.0,64463.0,1.04011485]
[1719138013080,0.96924976,64464.0,64463.0,1.04006231]
[1719138013321,1.03081063,64464.0,64463.0,1.04006231]
[1719138013676,0.9789063,64464.0,64463.0,1.04006231]
[1719138013842,1.03076684,64464.0,64463.0,1.04006231]
[1719138014793,0.72051684,64464.0,64463.0,1.04006231]
[1719138014998,0.6686563,64464.0,64463.0,1.04006231]
[1719138015198,0.72056153,64464.0,64463.0,1.04006231]
[1719138016418,0.72056153,64464.0,64463.0,1.04011484]
[1719138019148,0.6686563,64464.0,64463.0,1.04011484]
[1719138019364,0.72052727,64464.0,64463.0,1.04011484]
[1719138022092,0.6686563,64464.0,64463.0,1.04011484]
[1719138022312,0.56372947,64464.0,64463.0,1.04011484]
[1719138022718,0.56380531,64464.0,64463.0,1.04011484]
[1719138024125,0.56380093,64464.0,64463.0,1.04011484]
[1719138025032,0.51191325,64464.0,64463.0,1.04011484]
[1719138025230,0.56380208,64464.0,64463.0,1.04011484]
[1719138025431,0.55414554,64464.0,64463.0,1.04011484]
[1719138025610,0.54448859,64464.0,64463.0,1.04011484]
[1719138028071,0.49259976,64464.0,64463.0,1.04011484]
[1719138028407,0.54447365,64464.0,64463.0,1.04011484]
[1719138031240,0.54436479,64464.0,64463.0,1.04011484]
[1719138031853,0.544377,64464.0,64463.0,1.04011484]
[1719138033104,0.54436504,64464.0,64463.0,1.04011484]
[1719138034332,0.54432311,64464.0,64463.0,1.04011484]
[1719138036509,0.56432311,64464.0,64463.0,1.04011484]
[1719138036720,0.54432311,64464.0,64463.0,1.04011484]
[1719138037300,0.53468372,64464.0,64463.0,1.04011484]
[1719138037503,0.54434103,64464.0,64463.0,1.04011484]
[1719138039707,0.49259976,64464.0,64463.0,1.04011484]
[1719138039910,0.54434447,64464.0,64463.0,1.04011484]
[1719138040515,0.52225704,64464.0,64463.0,1.04011484]
[1719138040751,0.60642324,64464.0,64463.0,1.04011484]
[1719138040965,0.55468286,64464.0,64463.0,1.04011484]
[1719138041181,0.54434014,64464.0,64463.0,1.04011484]
[1719138041419,0.58642324,64464.0,64463.0,1.04011484]
[1719138043497,0.58640359,64464.0,64463.0,1.04011484]
[1719138044097,0.27615359,64464.0,64463.0,1.04011484]